bitfinex-derivatives/quotes_BTCF0:USTF0_20250510
["timestamp","ask_amount","ask_price","bid_price","bid_amount"]
[1746883517169,0.5115053,103630.0,103620.0,0.38663013]
[1746883517369,0.8723053,103630.0,103620.0,0.38663013]
[1746883517866,0.7156053,103630.0,103620.0,0.49533049]
[1746883518068,0.8406453,103630.0,103620.0,0.75533049]
[1746883518968,0.8406453,103630.0,103620.0,0.75499896]
[1746883519370,0.8406853,103630.0,103620.0,0.75499896]
[1746883520172,1.4190853,103630.0,103620.0,0.5862986]
[1746883522171,1.3866853,103630.0,103620.0,0.5862986]
[1746883522377,1.0666853,103630.0,103620.0,0.69499896]
[1746883522670,0.8169653,103630.0,103620.0,0.69499896]
[1746883522865,0.9106053,103630.0,103620.0,0.69499896]
[1746883523169,0.7164053,103630.0,103620.0,1.00499896]
[1746883524071,0.8824053,103630.0,103620.0,1.00499896]
[1746883524274,0.9144053,103630.0,103620.0,1.00499896]
[1746883524974,0.5536053,103630.0,103620.0,1.00499896]
[1746883525185,0.5536053,103630.0,103620.0,1.08579896]
[1746883526265,0.3876053,103630.0,103620.0,1.08579896]
[1746883526871,0.2307653,103630.0,103620.0,1.2041667]
[1746883527069,0.2307653,103630.0,103620.0,1.09546634]
[1746883527267,0.2307653,103630.0,103620.0,1.19196814]
[1746883530376,0.2307653,103630.0,103620.0,1.18230076]
[1746883530677,0.2625653,103630.0,103620.0,1.18230076]
[1746883531072,0.2625653,103630.0,103620.0,1.29100112]
[1746883531376,0.2625653,103630.0,103620.0,1.18230076]
[1746883535679,0.2625653,103630.0,103620.0,1.15230076]
[1746883535979,0.2933653,103630.0,103620.0,1.15230076]
[1746883536181,0.4593653,103630.0,103620.0,1.15230076]
[1746883536881,0.4285653,103630.0,103620.0,1.26100112]
[1746883537076,0.2625653,103630.0,103620.0,1.16230076]
[1746883539180,0.4285653,103630.0,103620.0,1.16230076]
[1746883539586,0.4285653,103630.0,103620.0,1.0536004]
[1746883539781,0.4285653,103630.0,103620.0,1.16230076]
[1746883540784,0.4285653,103630.0,103620.0,1.15230076]
[1746883540977,0.4615653,103630.0,103620.0,1.15230076]
[1746883541389,0.4615653,103630.0,103620.0,1.0436004]
[1746883541581,0.4615653,103630.0,103620.0,1.21230076]
[1746883543086,0.4285653,103630.0,103620.0,1.21230076]
[1746883543384,0.2625653,103630.0,103620.0,1.21230076]
[1746883545183,0.2038,103630.0,103620.0,1.32100112]
[1746883545378,0.3967653,103630.0,103620.0,1.306243]
[1746883545577,0.4275653,103630.0,103620.0,1.306243]
[1746883546284,0.2615653,103630.0,103620.0,1.306243]
[1746883546483,0.2920653,103630.0,103620.0,1.306243]
[1746883546781,0.2920653,103630.0,103620.0,1.19754264]
[1746883547086,0.4580653,103630.0,103620.0,1.19754264]
[1746883549187,0.2920653,103630.0,103620.0,1.19754264]
[1746883550188,0.4580653,103630.0,103620.0,1.19754264]
[1746883551291,0.4580653,103630.0,103620.0,1.08884228]
[1746883551589,0.4275653,103630.0,103620.0,1.306243]
[1746883553589,0.4275653,103630.0,103620.0,1.19754264]
[1746883555792,0.4576653,103630.0,103620.0,1.19754264]
[1746883556491,0.4576653,103630.0,103620.0,1.13754264]
[1746883556797,0.4576653,103630.0,103620.0,1.02884228]
[1746883556994,0.4576653,103630.0,103620.0,1.13754264]
[1746883558795,0.4576653,103630.0,103620.0,1.02884228]
[1746883558999,0.4576653,103630.0,103620.0,1.13754264]
[1746883559798,0.4576653,103630.0,103620.0,1.02884228]
[1746883559995,0.4576653,103630.0,103620.0,1.13754264]
[1746883561798,0.4576653,103630.0,103620.0,1.26330264]
[1746883562393,0.4576653,103630.0,103620.0,1.15460228]
[1746883562594,0.4576653,103630.0,103620.0,1.26330264]
[1746883565488,0.4576653,103630.0,103620.0,1.15460228]
[1746883565690,0.4576653,103630.0,103620.0,1.26330264]
[1746883565899,0.4576653,103630.0,103620.0,0.90250264]
[1746883566101,0.4576653,103630.0,103620.0,1.26330264]
[1746883566802,0.4576653,103630.0,103620.0,1.13754264]
[1746883567001,0.4576653,103630.0,103620.0,1.26330264]
[1746883572015,0.4576653,103630.0,103620.0,1.13754264]
[1746883577212,0.4576653,103630.0,103620.0,1.02884228]
[1746883577414,0.4576653,103630.0,103620.0,0.50824048]
[1746883577609,0.4576653,103630.0,103620.0,0.47694048]
[1746883577818,0.8184653,103630.0,103620.0,0.47694048]
[1746883578111,0.8184653,103630.0,103620.0,0.49157799]
[1746883579620,0.9444653,103630.0,103620.0,0.49157799]
[1746883582721,1.05316566,103630.0,103620.0,0.49157799]
[1746883583020,1.05316566,103630.0,103620.0,0.28157799]
[1746883584223,1.05316566,103630.0,103620.0,0.08859409]
[1746883584412,1.17916566,103630.0,103620.0,0.08873756]
[1746883595825,1.17916566,103630.0,103620.0,0.01873756]
[1746883598034,1.28786602,103630.0,103620.0,0.01873756]
[1746883598529,1.17916566,103630.0,103620.0,0.01873756]
[1746883599434,1.96936602,103630.0,103620.0,0.01873756]
[1746883600134,1.86066566,103630.0,103620.0,0.01873756]
[1746883600333,1.96936602,103630.0,103620.0,0.01873756]
[1746883601031,1.60856602,103630.0,103620.0,0.01873756]
[1746883601235,2.33016602,103630.0,103620.0,0.01873756]
[1746883602031,1.60856602,103630.0,103620.0,0.01873756]
[1746883602239,2.33016602,103630.0,103620.0,0.01873756]
[1746883603737,2.22146566,103630.0,103620.0,0.01873756]
[1746883604539,2.33016602,103630.0,103620.0,0.01873756]
[1746883604739,2.22146566,103630.0,103620.0,0.01873756]
[1746883606535,2.22146566,103630.0,103620.0,0.04873756]
[1746883607339,1.85954566,103630.0,103620.0,0.01873756]
[1746883607541,1.4999653,103630.0,103620.0,0.30582146]
[1746883607738,1.1090653,103630.0,103620.0,0.30582146]
[1746883608039,1.7206653,103630.0,103620.0,0.30582146]
[1746883608338,1.7206653,103630.0,103620.0,0.29104048]
[1746883608539,1.5646653,103630.0,103620.0,0.30104048]
[1746883608739,1.6898653,103630.0,103620.0,0.30104048]
[1746883610838,1.4390653,103630.0,103620.0,0.30104048]
[1746883611038,1.5641853,103630.0,103620.0,0.40974084]
[1746883611544,1.4390653,103630.0,103620.0,0.40974084]
[1746883611740,1.4072653,103630.0,103620.0,0.66974084]
[1746883612041,1.4072653,103630.0,103620.0,0.56104048]
[1746883612243,1.2412653,103630.0,103620.0,0.66974084]
[1746883612942,1.2412653,103630.0,103620.0,0.76624264]
[1746883613340,1.2412653,103630.0,103620.0,1.12704264]
[1746883613341,0.8804653,103630.0,103620.0,1.12704264]
[1746883614343,0.1989653,103630.0,103620.0,1.12704264]
[1746883614845,0.1989653,103630.0,103620.0,1.01834228]
[1746883615138,0.1989653,103630.0,103620.0,1.12704264]
[1746883620149,0.3649653,103630.0,103620.0,1.12704264]
[1746883620446,0.3953653,103630.0,103620.0,1.12704264]
[1746883630463,0.4262653,103630.0,103620.0,1.12704264]
[1746883631753,0.3953653,103630.0,103620.0,1.15704264]
[1746883632555,0.3953653,103630.0,103620.0,1.265743]
[1746883632556,0.172,103630.0,103620.0,1.265743]
[1746883632860,0.3967653,103630.0,103620.0,1.265743]
[1746883633060,0.2038,103630.0,103620.0,1.265743]
[1746883633264,0.0378,103630.0,103620.0,1.265743]
[1746883633862,0.0348,103630.0,103620.0,1.265743]
[1746883634165,0.0358,103630.0,103620.0,1.266743]
[1746883634361,0.0358,103630.0,103620.0,1.15804264]
[1746883634561,0.0358,103630.0,103620.0,1.28236264]
[1746883635466,0.0358,103630.0,103620.0,1.391063]
[1746883635968,0.0358,103630.0,103620.0,1.28236264]
[1746883636869,0.0358,103630.0,103620.0,1.391063]
[1746883639269,0.0358,103630.0,103620.0,1.17366228]
[1746883639270,0.2287653,103630.0,103620.0,1.17366228]
[1746883639468,0.2611653,103630.0,103620.0,1.28236264]
[1746883639669,0.0682,103630.0,103620.0,1.28236264]
[1746883641175,0.2342,103630.0,103620.0,1.28236264]
[1746883642374,0.2018,103630.0,103620.0,1.487563]
[1746883642582,0.0332,103640.0,103630.0,0.1929653]
[1746883642875,0.2261467,103640.0,103630.0,1.04986566]
[1746883643062,0.3921467,103640.0,103630.0,1.04986566]
[1746883643266,0.3921467,103640.0,103630.0,1.14636746]
[1746883643768,0.3941467,103640.0,103630.0,1.14636746]
[1746883643972,0.2062,103640.0,103630.0,1.14636746]
[1746883644165,0.0402,103640.0,103630.0,1.14636746]
[1746883645279,0.2331467,103640.0,103630.0,1.14636746]
[1746883646077,0.2657467,103640.0,103630.0,1.14636746]
[1746883646278,0.0728,103640.0,103630.0,1.14636746]
[1746883646577,0.0728,103640.0,103630.0,1.15619859]
[1746883646776,0.2657467,103640.0,103630.0,1.15619859]
[1746883647179,0.0728,103640.0,103630.0,1.15619859]
[1746883647577,0.007,103640.0,103630.0,1.38619859]
[1746883648369,0.1999467,103640.0,103630.0,1.38619859]
[1746883648670,0.2639467,103640.0,103630.0,1.38619859]
[1746883649779,0.2639467,103640.0,103630.0,1.02539859]
[1746883649971,0.2639467,103640.0,103630.0,1.74699859]
[1746883650172,0.4299467,103640.0,103630.0,1.74699859]
[1746883651073,0.5959467,103640.0,103630.0,1.74699859]
[1746883651271,0.4299467,103640.0,103630.0,1.74699859]
[1746883654081,0.5959467,103640.0,103630.0,1.74699859]
[1746883654285,0.4299467,103640.0,103630.0,1.74699859]
[1746883656187,0.237,103640.0,103630.0,1.74699859]
[1746883656388,0.4299467,103640.0,103630.0,1.74699859]
[1746883657990,0.1928813,103680.0,103670.0,0.0482186]
[1746883658187,0.33188166,103680.0,103670.0,0.3093108]
[1746883658488,0.2231813,103680.0,103670.0,0.3093108]
[1746883658887,0.33188166,103680.0,103670.0,0.3093108]
[1746883659088,0.49788166,103680.0,103670.0,0.3093108]
[1746883659291,0.56058166,103680.0,103670.0,0.3093108]
[1746883659489,0.56058166,103680.0,103670.0,0.32401514]
[1746883659888,0.56058166,103680.0,103670.0,0.3093108]
[1746883660078,0.56058166,103680.0,103670.0,0.3103108]
[1746883660079,0.67828202,103680.0,103670.0,0.3103108]
[1746883660484,0.68528202,103680.0,103670.0,0.3113108]
[1746883660692,0.68128202,103680.0,103670.0,0.3113108]
[1746883661093,0.67428202,103680.0,103670.0,0.3103108]
[1746883661288,0.67928202,103680.0,103670.0,0.3113108]
[1746883663896,0.4618813,103680.0,103670.0,0.3113108]
[1746883664092,0.57058166,103680.0,103670.0,0.3113108]
[1746883664898,0.57058166,103680.0,103670.0,0.32549826]
[1746883666396,0.4618813,103680.0,103670.0,0.32549826]
[1746883666601,0.57058166,103680.0,103670.0,0.32549826]
[1746883670200,0.93138166,103680.0,103670.0,0.32549826]
[1746883671804,0.8226813,103680.0,103670.0,0.32549826]
[1746883672103,0.93138166,103680.0,103670.0,0.32549826]
[1746883674108,0.8226813,103680.0,103670.0,0.32549826]
[1746883674403,0.93138166,103680.0,103670.0,0.32549826]
[1746883678506,0.93138166,103680.0,103670.0,0.35699826]
[1746883681406,0.93138166,103680.0,103670.0,0.03618746]
[1746883681611,1.04008202,103680.0,103670.0,0.01618746]
[1746883681809,1.04008202,103680.0,103670.0,0.20907826]
[1746883682003,0.93138166,103680.0,103670.0,0.20907826]
[1746883682508,0.93138166,103680.0,103670.0,0.01618746]
[1746883682723,1.04008202,103680.0,103670.0,0.01618746]
[1746883683206,1.51053802,103680.0,103670.0,0.002]
[1746883683810,1.2931373,103680.0,103670.0,0.002]
[1746883684010,1.51053802,103680.0,103670.0,0.002]
[1746883686315,1.26053802,103680.0,103670.0,0.002]
[1746883689015,1.16408202,103680.0,103670.0,0.002]
[1746883689205,1.26053802,103680.0,103670.0,0.002]
[1746883693518,1.16408202,103680.0,103670.0,0.002]
[1746883694520,1.16408202,103680.0,103670.0,0.0328]
[1746883698124,0.80328202,103680.0,103670.0,0.0328]
[1746883698323,1.52488202,103680.0,103670.0,0.0328]
[1746883703928,1.68508202,103680.0,103670.0,0.0328]
[1746883704325,1.52488202,103680.0,103670.0,0.0328]
[1746883708327,1.52488202,103680.0,103670.0,0.0634]
[1746883708729,1.64856202,103680.0,103670.0,0.0634]
[1746883709824,1.41618166,103680.0,103670.0,0.2562908]
[1746883710029,1.53982166,103680.0,103670.0,0.2562908]
[1746883710219,1.3074813,103680.0,103670.0,0.2890908]
[1746883710419,1.3992013,103680.0,103670.0,0.2890908]
[1746883710619,1.50790166,103680.0,103670.0,0.2890908]
[1746883712532,1.38418166,103680.0,103670.0,0.2890908]
[1746883712831,1.50774166,103680.0,103670.0,0.2890908]
[1746883717533,1.53774166,103680.0,103670.0,0.2890908]
[1746883718027,1.3989613,103680.0,103670.0,0.2890908]
[1746883718230,1.2329613,103680.0,103670.0,0.3490908]
[1746883719333,1.3989613,103680.0,103670.0,0.3490908]
[1746883721734,1.53906166,103680.0,103670.0,0.3490908]
[1746883723040,1.29158166,103680.0,103670.0,0.3490908]
[1746883723433,1.1828813,103680.0,103670.0,0.3490908]
[1746883723830,1.29158166,103680.0,103670.0,0.3490908]
[1746883724029,1.1828813,103680.0,103670.0,0.3490908]
[1746883724225,1.3062013,103680.0,103670.0,0.3490908]
[1746883724530,1.53938166,103680.0,103670.0,0.3490908]
[1746883725239,1.4306813,103680.0,103670.0,0.3490908]
[1746883725433,1.53938166,103680.0,103670.0,0.3490908]
[1746883725635,1.4306813,103680.0,103670.0,0.3490908]
[1746883726030,1.53938166,103680.0,103670.0,0.3490908]
[1746883726841,1.64808202,103680.0,103670.0,0.2856908]
[1746883727034,1.4306813,103680.0,103670.0,0.2856908]
[1746883727235,1.53938166,103680.0,103670.0,0.2856908]
[1746883728734,1.53938166,103680.0,103670.0,0.3170908]
[1746883728932,1.53938166,103680.0,103670.0,0.3487908]
[1746883732942,1.4306813,103680.0,103670.0,0.3487908]
[1746883733333,1.53938166,103680.0,103670.0,0.3487908]
[1746883734242,1.3073613,103680.0,103670.0,0.3487908]
[1746883734446,1.4310413,103680.0,103670.0,0.3170908]
[1746883734741,1.4310413,103680.0,103670.0,0.3482908]
[1746883735042,1.53974166,103680.0,103670.0,0.3482908]
[1746883735544,1.53974166,103680.0,103670.0,0.0928]
[1746883735545,1.64844202,103680.0,103670.0,0.0928]
[1746883736245,1.3065613,103680.0,103670.0,0.2856908]
[1746883736545,1.41526166,103680.0,103670.0,0.2856908]
[1746883738544,1.53894166,103680.0,103670.0,0.2856908]
[1746883738845,1.4302413,103680.0,103670.0,0.2856908]
[1746883739048,1.53894166,103680.0,103670.0,0.2856908]
[1746883740247,1.17814166,103680.0,103670.0,0.2856908]
[1746883740442,1.17814166,103680.0,103670.0,0.0928]
[1746883740644,1.28684202,103680.0,103670.0,0.2855908]
[1746883741045,1.17814166,103680.0,103670.0,0.2855908]
[1746883743150,1.0694413,103680.0,103670.0,0.2855908]
[1746883743452,1.17814166,103680.0,103670.0,0.2855908]
[1746883744247,1.0694413,103680.0,103670.0,0.2855908]
[1746883744443,1.0729613,103680.0,103670.0,0.2855908]
[1746883744642,1.18166166,103680.0,103670.0,0.3159908]
[1746883745550,1.0729613,103680.0,103670.0,0.3159908]
[1746883745849,1.18166166,103680.0,103670.0,0.3159908]
[1746883746747,1.0729613,103680.0,103670.0,0.3159908]
[1746883746947,1.18166166,103680.0,103670.0,0.3159908]
[1746883747141,1.01566166,103680.0,103670.0,0.3159908]
[1746883747752,0.65486166,103680.0,103670.0,0.3159908]
[1746883747952,0.9069613,103680.0,103670.0,0.3159908]
[1746883748153,1.18166166,103680.0,103670.0,0.3159908]
[1746883749550,1.18166166,103680.0,103670.0,0.3468908]
[1746883752848,1.18166166,103680.0,103670.0,0.2855908]
[1746883759766,1.0729613,103680.0,103670.0,0.2855908]
[1746883760061,1.18166166,103680.0,103670.0,0.2855908]
[1746883760263,1.18166166,103680.0,103670.0,0.3171908]
[1746883761862,1.0729613,103680.0,103670.0,0.3171908]
[1746883762054,1.18166166,103680.0,103670.0,0.3492908]
[1746883762563,1.0729613,103680.0,103670.0,0.3492908]
[1746883762764,1.18166166,103680.0,103670.0,0.3492908]
[1746883766561,1.18166166,103680.0,103670.0,0.1243]
[1746883766766,1.29036202,103680.0,103670.0,0.0927]
[1746883767063,1.29036202,103680.0,103670.0,0.0619]
[1746883767767,1.0729613,103680.0,103670.0,0.0619]
[1746883767954,1.16668202,103680.0,103670.0,0.0922]
[1746883769361,1.05798166,103680.0,103670.0,0.0922]
[1746883770655,1.16668202,103680.0,103670.0,0.0922]
[1746883772666,1.29488202,103680.0,103670.0,0.0922]
[1746883773567,1.0774813,103680.0,103670.0,0.0922]
[1746883773965,1.29488202,103680.0,103670.0,0.0922]
[1746883781773,0.93408202,103680.0,103670.0,0.0922]
[1746883781973,1.29488202,103680.0,103670.0,0.0922]
[1746883782173,1.18618166,103680.0,103670.0,0.0922]
[1746883783174,1.29488202,103680.0,103670.0,0.0922]
[1746883789775,1.18618166,103680.0,103670.0,0.0922]
[1746883790079,0.82538166,103680.0,103670.0,0.0922]
[1746883790281,1.18618166,103680.0,103670.0,0.0922]
[1746883796773,1.29488202,103680.0,103670.0,0.0619]
[1746883797377,1.29488202,103680.0,103670.0,0.0019]
[1746883800689,1.0774813,103680.0,103670.0,0.0019]
[1746883801077,1.29488202,103680.0,103670.0,0.0328]
[1746883801781,1.29488202,103680.0,103670.0,0.0019]
[1746883802183,1.16768202,103680.0,103670.0,0.0019]
[1746883802385,1.29368202,103680.0,103670.0,0.0019]
[1746883802586,1.29368202,103680.0,103670.0,0.0337]
[1746883807686,1.18498166,103680.0,103670.0,0.0337]
[1746883807892,1.0762813,103680.0,103670.0,0.0337]
[1746883808091,1.29368202,103680.0,103670.0,0.0337]
[1746883814894,1.0762813,103680.0,103670.0,0.0337]
[1746883815093,1.29368202,103680.0,103670.0,0.0337]
[1746883816094,1.05898166,103680.0,103670.0,0.2265908]
[1746883816294,1.18534166,103680.0,103670.0,0.2900908]
[1746883816595,1.18534166,103680.0,103670.0,0.3000908]
[1746883816894,1.05898166,103680.0,103670.0,0.3000908]
[1746883817094,1.01926166,103680.0,103670.0,0.3000908]
[1746883817895,1.12796202,103680.0,103670.0,0.1072]
[1746883818091,1.29396202,103680.0,103670.0,0.1072]
[1746883820494,1.0765613,103680.0,103670.0,0.1072]
[1746883820696,1.29396202,103680.0,103670.0,0.1072]
[1746883825101,1.29396202,103680.0,103670.0,0.0753]
[1746883825396,1.40266238,103680.0,103670.0,0.0019]
[1746883825594,0.1929095,103660.0,103650.0,0.01474942]
[1746883825797,0.1929281,103650.0,103640.0,0.14902133]
[1746883825996,0.75622846,103650.0,103640.0,0.21372808]
[1746883826207,0.92222846,103650.0,103640.0,0.21372808]
[1746883827702,0.92222846,103650.0,103640.0,0.21472808]
[1746883828606,0.92322846,103650.0,103640.0,0.21472808]
[1746883828806,0.92322846,103650.0,103640.0,0.24762808]
[1746883830804,0.92322846,103650.0,103640.0,0.06715389]
[1746883831696,0.92322846,103650.0,103640.0,0.05254714]
[1746883832193,1.03192882,103650.0,103640.0,0.021]
[1746883835800,1.03192882,103650.0,103640.0,0.001]
[1746883839507,0.1929653,103630.0,103620.0,0.03545658]
[1746883839704,0.91558566,103630.0,103620.0,0.14185479]
[1746883840005,1.01028566,103630.0,103620.0,0.14185479]
[1746883840204,1.17628566,103630.0,103620.0,0.14185479]
[1746883840405,1.17628566,103630.0,103620.0,0.17445479]
[1746883841209,1.17728566,103630.0,103620.0,0.17745479]
[1746883842006,1.17828566,103630.0,103620.0,0.18045479]
[1746883842602,1.17828566,103630.0,103620.0,0.17845479]
[1746883842798,1.17828566,103630.0,103620.0,0.14585479]
[1746883842999,1.17728566,103630.0,103620.0,0.14285479]
[1746883844007,1.17728566,103630.0,103620.0,0.11135479]
[1746883844307,1.17728566,103630.0,103620.0,0.12587192]
[1746883844907,1.17728566,103630.0,103620.0,0.11135479]
[1746883845503,1.17728566,103630.0,103620.0,0.09695658]
[1746883846909,1.53808566,103630.0,103620.0,0.09695658]
[1746883847609,1.53808566,103630.0,103620.0,0.11154022]
[1746883852210,1.4293853,103630.0,103620.0,0.11154022]
[1746883852517,1.4293853,103630.0,103620.0,0.14184022]
[1746883852518,1.53808566,103630.0,103620.0,0.14184022]
[1746883852719,1.53808566,103630.0,103620.0,0.17314022]
[1746883854414,1.53908566,103630.0,103620.0,0.17314022]
[1746883854604,1.54108566,103630.0,103620.0,0.17314022]
[1746883866222,1.28796566,103630.0,103620.0,0.17314022]
[1746883866425,1.54032566,103630.0,103620.0,0.17314022]
[1746883866726,1.54032566,103630.0,103620.0,0.15855658]
[1746883876640,1.54032566,103630.0,103620.0,0.12725658]
[1746883880442,1.4309053,103630.0,103620.0,0.32024048]
[1746883880636,1.4309053,103630.0,103620.0,0.35104048]
[1746883880833,1.53960566,103630.0,103620.0,0.35104048]
[1746883881235,1.37360566,103630.0,103620.0,0.35104048]
[1746883881441,1.37360566,103630.0,103620.0,0.15805658]
[1746883882334,1.53960566,103630.0,103620.0,0.15805658]
[1746883889748,1.64830602,103630.0,103620.0,0.09695658]
[1746883889943,1.64830602,103630.0,103620.0,0.06495658]
[1746883891051,1.64830602,103630.0,103620.0,0.07959098]
[1746883892449,1.53960566,103630.0,103620.0,0.07959098]
[1746883892641,1.64830602,103630.0,103620.0,0.07959098]
[1746883892953,1.53960566,103630.0,103620.0,0.07959098]
[1746883895553,1.53960566,103630.0,103620.0,0.11209098]
[1746883897158,1.53960566,103630.0,103620.0,0.07959098]
[1746883899759,1.53960566,103630.0,103620.0,0.11109098]
[1746883907960,1.53960566,103630.0,103620.0,0.07959098]
[1746883910265,1.53960566,103630.0,103620.0,0.11189098]
[1746883910468,1.4309053,103630.0,103620.0,0.11189098]
[1746883910668,1.53960566,103630.0,103620.0,0.11189098]
[1746883919673,1.53960566,103630.0,103620.0,0.14199098]
[1746883925275,1.53960566,103630.0,103620.0,0.07959098]
[1746883925474,1.53960566,103630.0,103620.0,0.11269098]
[1746883934475,1.64830602,103630.0,103620.0,0.07959098]
[1746883934673,1.64830602,103630.0,103620.0,0.01959098]
[1746883935479,1.53960566,103630.0,103620.0,0.05279098]
[1746883937082,1.4309053,103630.0,103620.0,0.05279098]
[1746883937278,1.53960566,103630.0,103620.0,0.05279098]
[1746883947785,1.54060566,103630.0,103620.0,0.05279098]
[1746883948680,1.54060566,103630.0,103620.0,0.05179098]
[1746883948880,1.53860566,103630.0,103620.0,0.05279098]
[1746883949091,1.54060566,103630.0,103620.0,0.05279098]
[1746883950485,1.53860566,103630.0,103620.0,0.05279098]
[1746883950688,1.54160566,103630.0,103620.0,0.05279098]
[1746883957085,1.3066653,103630.0,103620.0,0.24577488]
[1746883957289,0.2632653,103630.0,103620.0,0.42737524]
[1746883957493,0.3892653,103630.0,103620.0,0.31867488]
[1746883957785,0.85876566,103630.0,103620.0,0.30404048]
[1746883958181,0.85876566,103630.0,103620.0,0.11105658]
[1746883958385,0.89166566,103630.0,103620.0,0.11105658]
[1746883958585,0.89166566,103630.0,103620.0,0.12564961]
[1746883958785,0.7829653,103630.0,103620.0,0.12564961]
[1746883958982,0.89166566,103630.0,103620.0,0.09424961]
[1746883959186,1.05766566,103630.0,103620.0,0.09424961]
[1746883961586,1.05766566,103630.0,103620.0,0.06274961]
[1746883962887,1.05766566,103630.0,103620.0,0.05274961]
[1746883967392,1.16636602,103630.0,103620.0,0.05274961]
[1746883968090,1.05766566,103630.0,103620.0,0.05274961]
[1746883969695,1.05766566,103630.0,103620.0,0.06274961]
[1746883971705,1.18306566,103630.0,103620.0,0.06274961]
[1746883977105,1.18306566,103630.0,103620.0,0.12364961]
[1746883978509,1.54386566,103630.0,103620.0,0.12364961]
[1746883980408,1.54386566,103630.0,103620.0,0.06274961]
[1746883981812,1.54386566,103630.0,103620.0,0.05274961]
[1746883982000,1.54386566,103630.0,103620.0,0.06274961]
[1746883982510,1.4351653,103630.0,103620.0,0.06274961]
[1746883982807,1.54386566,103630.0,103620.0,0.06274961]
[1746883984110,1.54386566,103630.0,103620.0,0.12314961]
[1746883988708,1.05706566,103630.0,103620.0,0.31613351]
[1746883988910,1.0736053,103630.0,103620.0,0.31613351]
[1746883989109,1.01630566,103630.0,103620.0,0.31613351]
[1746883989515,1.01630566,103630.0,103620.0,0.30154048]
[1746883989917,0.85816566,103630.0,103620.0,0.30154048]
[1746883990105,0.98364566,103630.0,103620.0,0.30154048]
[1746883991514,0.98364566,103630.0,103620.0,0.04815658]
[1746883991711,1.01584566,103630.0,103620.0,0.04815658]
[1746883992415,1.01584566,103630.0,103620.0,0.11245658]
[1746883993817,0.9071453,103630.0,103620.0,0.11245658]
[1746883994015,1.01584566,103630.0,103620.0,0.11245658]
[1746883995510,1.01584566,103630.0,103620.0,0.12706426]
[1746883995813,1.01584566,103630.0,103620.0,0.06276426]
[1746883996111,1.29054602,103630.0,103620.0,0.0195396]
[1746883996317,1.65134602,103630.0,103620.0,0.0195396]
[1746883996517,1.54264566,103630.0,103620.0,0.0195396]
[1746884000810,1.54264566,103630.0,103620.0,0.0511396]
[1746884001419,1.65134602,103630.0,103620.0,0.0511396]
[1746884003318,1.54264566,103630.0,103620.0,0.0195396]
[1746884004219,1.54264566,103630.0,103620.0,0.0499396]
[1746884009127,0.82104566,103630.0,103620.0,0.0499396]
[1746884009324,1.54264566,103630.0,103620.0,0.0499396]
[1746884016029,0.82104566,103630.0,103620.0,0.0499396]
[1746884016331,1.54264566,103630.0,103620.0,0.0499396]
[1746884022831,1.4339453,103630.0,103620.0,0.0499396]
[1746884023139,1.54264566,103630.0,103620.0,0.0827396]
[1746884025337,1.41716566,103630.0,103620.0,0.0827396]
[1746884025535,1.54236566,103630.0,103620.0,0.0827396]
[1746884025839,1.54236566,103630.0,103620.0,0.1154396]
[1746884030140,1.54236566,103630.0,103620.0,0.0827396]
[1746884030641,1.54236566,103630.0,103620.0,0.0499396]
[1746884041245,1.29176566,103630.0,103620.0,0.0499396]
[1746884041446,1.53992566,103630.0,103620.0,0.0499396]
[1746884044346,1.1830653,103630.0,103620.0,0.1135396]
[1746884044541,1.3990253,103630.0,103620.0,0.3065235]
[1746884044744,1.14692566,103630.0,103620.0,0.3065235]
[1746884045248,0.98092566,103630.0,103620.0,0.3065235]
[1746884045446,0.98092566,103630.0,103620.0,0.29194048]
[1746884048148,0.7481453,103630.0,103620.0,0.29194048]
[1746884048447,0.5597653,103630.0,103620.0,0.49064084]
[1746884048648,0.1989653,103630.0,103620.0,1.16794264]
[1746884049147,0.1989653,103630.0,103620.0,1.33394264]
[1746884050155,0.1989653,103630.0,103620.0,1.05924228]
[1746884051253,0.1989653,103630.0,103620.0,1.22524228]
[1746884052154,0.1989653,103630.0,103620.0,1.05924228]
[1746884053248,0.1989653,103630.0,103620.0,1.51444264]
[1746884053452,0.1989653,103630.0,103620.0,1.26444264]
[1746884054954,0.1989653,103630.0,103620.0,1.28444264]
[1746884055551,0.1989653,103630.0,103620.0,1.393143]
[1746884056150,0.1989653,103630.0,103620.0,1.45044264]
[1746884056351,0.1989653,103630.0,103620.0,1.559143]
[1746884056651,0.1989653,103630.0,103620.0,1.45044264]
[1746884057259,0.1989653,103630.0,103620.0,1.559143]
[1746884057953,0.006,103630.0,103620.0,1.559143]
[1746884058156,0.1929363,103650.0,103640.0,0.1929467]
[1746884058456,0.1929095,103660.0,103650.0,0.1929281]
[1746884058758,0.1929095,103660.0,103650.0,0.4070281]
[1746884059261,0.1929095,103660.0,103650.0,0.70867433]
[1746884059453,0.1929095,103660.0,103650.0,0.70267433]
[1746884059855,0.1929095,103660.0,103650.0,1.06347433]
[1746884060254,0.1929095,103660.0,103650.0,1.18751433]
[1746884060560,0.1929095,103660.0,103650.0,1.09104233]
[1746884061261,0.3057304,103670.0,103660.0,0.1929095]
[1746884061561,0.3057304,103670.0,103660.0,0.39050986]
[1746884061758,0.3057304,103670.0,103660.0,0.38850986]
[1746884062060,0.3057304,103670.0,103660.0,0.74930986]
[1746884062261,0.3057304,103670.0,103660.0,0.74830986]
[1746884063159,0.3087304,103670.0,103660.0,0.74930986]
[1746884065266,0.2604908,103670.0,103660.0,1.17447479]
[1746884065467,0.1958908,103670.0,103660.0,1.27093879]
[1746884066166,0.1958908,103670.0,103660.0,1.22223843]
[1746884067754,0.1958908,103670.0,103660.0,1.27974103]
[1746884068054,0.003,103670.0,103660.0,1.27974103]
[1746884068862,0.003,103670.0,103660.0,2.77974103]
[1746884069474,0.3519119,103680.0,103670.0,0.1928908]
[1746884069676,0.3519119,103680.0,103670.0,1.24839376]
[1746884070080,0.3519119,103680.0,103670.0,1.34485833]
[1746884071386,0.3519119,103680.0,103670.0,1.34685833]
[1746884071581,0.3529119,103680.0,103670.0,1.34685833]
[1746884072083,0.3529119,103680.0,103670.0,1.18065537]
[1746884072480,0.3529119,103680.0,103670.0,1.34685833]
[1746884073879,0.3529119,103680.0,103670.0,1.36169311]
[1746884074187,0.5189119,103680.0,103670.0,1.36169311]
[1746884075184,0.5189119,103680.0,103670.0,1.19549015]
[1746884076482,0.5189119,103680.0,103670.0,1.36169311]
[1746884078084,0.5502119,103680.0,103670.0,1.36169311]
[1746884078289,0.3842119,103680.0,103670.0,1.36169311]
[1746884078588,0.2877734,103680.0,103670.0,1.36169311]
[1746884080086,0.0636,103680.0,103670.0,1.36169311]
[1746884081189,0.0636,103680.0,103670.0,1.19549015]
[1746884081388,0.2564722,103680.0,103670.0,1.36169311]
[1746884083594,0.0636,103680.0,103670.0,1.36169311]
[1746884085895,0.2564722,103680.0,103670.0,1.00089311]
[1746884086193,0.2564722,103680.0,103670.0,1.36169311]
[1746884086791,0.0636,103680.0,103670.0,1.36169311]
[1746884087096,0.02959,103690.0,103680.0,0.1928722]